Workbook

Sheet Engage 1
C3: Meeting Engagement | F3: =ROUND(E4/G4,1)&" : 1" -> 3 : 1 | I3: Meeting Engagement
D4: =VLOOKUP(CONCATENATE($C$3&" vs "&$I$3),DamageTable,MATCH($E4/$G4,'[4]Damage Table'!$B$2:$BO$2)+1,TRUE) -> 0.08 | E4: =SUM(Q6:Q15) -> 823.202 | G4: =SUM(T6:T15) -> 274.8 | J4: =VLOOKUP(CONCATENATE($C$3&" vs "&$I$3),DamageTable,MATCH($E4/$G4,'[4]Damage Table'!$B$2:$BO$2)+2,TRUE) -> 0.45
B5: Strength | C5: Unit | D5: Remaining | H5: Strength | I5: Unit | J5: Remaining
B6: 0.88 | C6: CAS Sortie x10 | D6: =B6*(1-$D$4) -> 0.8096 | H6: 1 | I6: Infantry Bde (BTR-80/T-72A) | J6: =H6*(1-$J$4) -> 0.55 | P6: 80 | Q6: =P6*B6 -> 70.4 | S6: 274.8 | T6: =S6*H6 -> 274.8
B7: 0.97 | C7: Armored Bde (GB) | D7: 0.8924 | H7: 0.55 | J7: 0.3025 | P7: 313.6 | Q7: =P7*B7 -> 304.192 | S7: 0 | T7: =S7*H7 -> 0
B8: 1 | C8: Infantry Bde (SBCT) | D8: 0.92 | H8: 0.55 | J8: 0.3025 | P8: 208.61 | Q8: 208.61 | S8: 0 | T8: 0
B9: 1 | C9: CAS Sortie x10 | D9: 0.92 | H9: 0.55 | J9: 0.3025 | P9: 80 | Q9: 80 | S9: 0 | T9: 0
B10: 1 | C10: CAS Sortie x10 | D10: 0.92 | H10: 0.55 | J10: 0.3025 | P10: 80 | Q10: 80 | S10: 0 | T10: 0
B11: 1 | C11: CAS Sortie x10 | D11: 0.92 | H11: 0.55 | J11: 0.3025 | P11: 80 | Q11: 80 | S11: 0 | T11: 0
B12: 0.85 | D12: 0.782 | H12: 0.55 | J12: 0.3025 | P12: 0 | Q12: 0 | S12: 0 | T12: 0
B13: 0.85 | D13: 0.782 | H13: 0.55 | J13: 0.3025 | P13: 0 | Q13: 0 | S13: 0 | T13: 0
B14: 0.85 | D14: 0.782 | H14: 0.55 | J14: 0.3025 | P14: 0 | Q14: 0 | S14: 0 | T14: 0
B15: 0.85 | D15: 0.782 | H15: 0.55 | J15: 0.3025 | P15: 0 | Q15: 0 | S15: 0 | T15: 0
C16: Control + Left-Click & Drag Unit Icons into the blue field | I16: Control + Left-Click & Drag Unit Icons into the red field
O20: As of 8 Sep 2017 | P20: As of 17 Aug 2017
O21: Send Feedback to: | P21: Send Feedback to:
O22: Maj Benjamin Neusse | P22: Maj Benjamin Neusse
O23: Send Feedback (NIPR) | P23: Send Feedback (NIPR)
O24: Send Feedback (BICES) | P24: Send Feedback (BICES)
O25: Send Feedback (SIPR) | P25: Send Feedback (SIPR)

Sheet VBA Code
C2: To Enable this File to function as designed: | E2: To use this File:
C3: Enable the developer tab on the Ribbon (File, Options, Customize Ribbon, Developer but varies by XL version). | E3: Click the Engage 1 Tab.
C4: Copy the Code below. | E4: Use the Radio buttons to select the Engagement Type for Red and Blue (Attack, Defend, etc)
C5: Click on the Developer Tab in the Ribbon above. | E5: Copy and Paste units into the blue and red fields.
C6: Click on the Visual Basic Button. | E6: Press the "GO" Button down.
C7: In the Top Right window double-click to select Sheet 8 (Engage 1) | E7: Click in any cell to action the calculation.
C8: Click in the code window to the right. | E8: Review the unit names in the list and update the starting % strength as desired for blue and red.
C9: Paste in the code. | E9: Any time you update the units in the blue or red field it could change the order in the list.
C10: Close the VBA window. | E10: Thus keep an eye on the % strength as you make changes.
C11: Save the file as a macro enabled (File, Save As, Select Folder, Save Type as: Excel Macro Enabled .xlsm). | E11: Continue to update the units in the blue and red fields as needed to support the decision or estimate an outcome.
C12: Close and reopen the file. | E12: When happy with the force ratio and loss estimates click the GO button to stop the code from running needlessly.
C13: Click to enable content, enable macros, etc. | E13: Copy the Tab to start a new engagement.
C14: To confirm select Engage 1 Tab, click the GO button. | E14: For a series of re-engagements, you can copy the Remaining % and paste it as the Strength % for a following engagement.
C15: If it is clickable then the file is functional as a macro enabled file. | E15: You can name the tabs something meaninful to your operation (COA 1, COA 2, etc).
C17: VBA Code to copy and paste into the VBA Code window for Sheet 8 (Engage 1) | E17: To make modifications:
E18: The code works by looking up the unit name and combat power that is embedded in each icon.
E19: Each icon is a power point picture.
E20: You can add your own icons or modify the current ones.
E21: To add or modify the unit name or combat power select the picture.
E22: Right-click the picture and select "Format Picture"
E23: Navigate to the size and properties section.
E24: Under Alt Text section (Depending on XL version you may have to tab or expand to find it).
E25: Fill the Unit Name (TYPE) in the Alt Text Field.
E26: Fill in the Combat Power in the Description Field.
E27: This will allow you to add custom formations, specific units, etc.
E29: As of 8 Sep 2017
E30: Send Feedback to:
E31: Maj Benjamin Neusse
E32: Send Feedback (NIPR)
E33: Send Feedback (BICES)
E34: Send Feedback (SIPR)

Sheet Damage Table (hidden)
A1: F to E force ratio | B1: 1:5 | D1: 1:4.75 | F1: 1:4.5 | H1: 1:4.25 | J1: 1:4 | L1: 1:3.75 | N1: 1:3.5 | P1: 1:3.25 | R1: 1:3 | T1: 1:2.75 | V1: 1:2.5 | X1: 1:2.25 | Z1: 1:2 | AB1: 1:1.75 | AD1: 1:1.5 | AF1: 1:1.25 | AH1: 1:1 | AJ1: 1.25:1 | AL1: 1.5:1 | AN1: 1.75:1 | AP1: 2:1 | AR1: 2.25:1 | AT1: 2.5:1 | AV1: 2.75:1 | AX1: 3:1 | AZ1: 3.25:1 | BB1: 3.5:1 | BD1: 3.75:1 | BF1: 4:1 | BH1: 4.25:1 | BJ1: 4.5:1 | BL1: 4.75:1 | BN1: 5:1
A2: Friendly vs Enemy | B2: =1/5 -> 0.2 | D2: =1/4.57 -> 0.2188183807 | F2: =1/4.5 -> 0.2222222222 | H2: =1/4.25 -> 0.2352941176 | J2: =1/4 -> 0.25 | L2: =1/3.75 -> 0.2666666667 | N2: =1/3.5 -> 0.2857142857 | P2: =1/3.25 -> 0.3076923077 | R2: =1/3 -> 0.3333333333 | T2: =1/2.75 -> 0.3636363636 | V2: =1/2.5 -> 0.4 | X2: =1/2.25 -> 0.4444444444 | Z2: =1/2 -> 0.5 | AB2: =1/1.75 -> 0.5714285714 | AD2: =1/1.5 -> 0.6666666667 | AF2: =1/1.25 -> 0.8 | AH2: 1 | AJ2: 1.25 | AL2: 1.5 | AN2: 1.75 | AP2: 2 | AR2: 2.25 | AT2: 2.5 | AV2: 2.75 | AX2: 3 | AZ2: 3.25 | BB2: 3.5 | BD2: 3.75 | BF2: 4 | BH2: 4.25 | BJ2: 4.5 | BL2: 4.75 | BN2: 5
A3: % of Friendly Forces | B3: =1/6 -> 0.1666666667 | D3: =1/5.75 -> 0.1739130435 | F3: =1/5.5 -> 0.1818181818 | H3: =1/5.25 -> 0.1904761905 | J3: =1/5 -> 0.2 | L3: =1/4.75 -> 0.2105263158 | N3: =1/4.5 -> 0.2222222222 | P3: =1/4.25 -> 0.2352941176 | R3: =1/4 -> 0.25 | T3: =1/3.75 -> 0.2666666667 | V3: =1/3.5 -> 0.2857142857 | X3: =1/3.25 -> 0.3076923077 | Z3: =1/3 -> 0.3333333333 | AB3: =1/2.75 -> 0.3636363636 | AD3: =1/2.5 -> 0.4 | AF3: =1/2.25 -> 0.4444444444 | AH3: =1/2 -> 0.5 | AJ3: =1.25/2.25 -> 0.5555555556 | AL3: =1.5/2.5 -> 0.6 | AN3: =1.75/2.75 -> 0.6363636364 | AP3: =2/3 -> 0.6666666667 | AR3: =2.25/3.25 -> 0.6923076923 | AT3: =2.5/3.5 -> 0.7142857143 | AV3: =2.75/3.75 -> 0.7333333333 | AX3: =3/4 -> 0.75 | AZ3: =3.25/4.25 -> 0.7647058824 | BB3: =3.5/4.5 -> 0.7777777778 | BD3: =3.75/4.75 -> 0.7894736842 | BF3: =4/5 -> 0.8 | BH3: =4.25/5.25 -> 0.8095238095 | BJ3: =4.5/5.5 -> 0.8181818182 | BL3: =4.75/5.75 -> 0.8260869565 | BN3: =5/6 -> 0.8333333333
A4: Deliberate Attack vs Deliberate Attack | B4: N/A | C4: N/A | D4: N/A | E4: N/A | F4: N/A | G4: N/A | H4: N/A | I4: N/A | J4: N/A | K4: N/A | L4: N/A | M4: N/A | N4: N/A | O4: N/A | P4: N/A | Q4: N/A | R4: N/A | S4: N/A | T4: N/A | U4: N/A | V4: N/A | W4: N/A | X4: N/A | Y4: N/A | Z4: N/A | AA4: N/A | AB4: N/A | AC4: N/A | AD4: N/A | AE4: N/A | AF4: N/A | AG4: N/A | AH4: N/A | AI4: N/A | AJ4: N/A | AK4: N/A | AL4: N/A | AM4: N/A | AN4: N/A | AO4: N/A | AP4: N/A | AQ4: N/A | AR4: N/A | AS4: N/A | AT4: N/A | AU4: N/A | AV4: N/A | AW4: N/A | AX4: N/A | AY4: N/A | AZ4: N/A | BA4: N/A | BB4: N/A | BC4: N/A | BD4: N/A | BE4: N/A | BF4: N/A | BG4: N/A | BH4: N/A | BI4: N/A | BJ4: N/A | BK4: N/A | BL4: N/A | BM4: N/A | BN4: N/A | BO4: N/A
A5: Deliberate Attack vs Deliberate Defense | B5: 0.99 | C5: 0.01 | D5: 0.93 | E5: 0.02 | F5: 0.93 | G5: 0.02 | H5: 0.89 | I5: 0.03 | J5: 0.86 | K5: 0.04 | L5: 0.83 | M5: 0.05 | N5: 0.8 | O5: 0.06 | P5: 0.76 | Q5: 0.06 | R5: 0.73 | S5: 0.07 | T5: 0.69 | U5: 0.09 | V5: 0.65 | W5: 0.1 | X5: 0.61 | Y5: 0.11 | Z5: 0.57 | AA5: 0.12 | AB5: 0.53 | AC5: 0.14 | AD5: 0.48 | AE5: 0.16 | AF5: 0.43 | AG5: 0.18 | AH5: 0.38 | AI5: 0.21 | AJ5: 0.33 | AK5: 0.24 | AL5: 0.3 | AM5: 0.26 | AN5: 0.27 | AO5: 0.28 | AP5: 0.25 | AQ5: 0.3 | AR5: 0.23 | AS5: 0.31 | AT5: 0.22 | AU5: 0.33 | AV5: 0.21 | AW5: 0.34 | AX5: 0.2 | AY5: 0.35 | AZ5: 0.19 | BA5: 0.36 | BB5: 0.18 | BC5: 0.37 | BD5: 0.17 | BE5: 0.38 | BF5: 0.16 | BG5: 0.38 | BH5: 0.16 | BI5: 0.39 | BJ5: 0.15 | BK5: 0.4 | BL5: 0.15 | BM5: 0.4 | BN5: 0.14 | BO5: 0.41
A6: Deliberate Attack vs Hasty Attack | B6: N/A | C6: N/A | D6: N/A | E6: N/A | F6: N/A | G6: N/A | H6: N/A | I6: N/A | J6: N/A | K6: N/A | L6: N/A | M6: N/A | N6: N/A | O6: N/A | P6: N/A | Q6: N/A | R6: N/A | S6: N/A | T6: N/A | U6: N/A | V6: N/A | W6: N/A | X6: N/A | Y6: N/A | Z6: N/A | AA6: N/A | AB6: N/A | AC6: N/A | AD6: N/A | AE6: N/A | AF6: N/A | AG6: N/A | AH6: N/A | AI6: N/A | AJ6: N/A | AK6: N/A | AL6: N/A | AM6: N/A | AN6: N/A | AO6: N/A | AP6: N/A | AQ6: N/A | AR6: N/A | AS6: N/A | AT6: N/A | AU6: N/A | AV6: N/A | AW6: N/A | AX6: N/A | AY6: N/A | AZ6: N/A | BA6: N/A | BB6: N/A | BC6: N/A | BD6: N/A | BE6: N/A | BF6: N/A | BG6: N/A | BH6: N/A | BI6: N/A | BJ6: N/A | BK6: N/A | BL6: N/A | BM6: N/A | BN6: N/A | BO6: N/A
A7: Deliberate Attack vs Hasty Defense | B7: 0.59 | C7: 0.11 | D7: 0.56 | E7: 0.12 | F7: 0.56 | G7: 0.12 | H7: 0.54 | I7: 0.13 | J7: 0.52 | K7: 0.14 | L7: 0.5 | M7: 0.15 | N7: 0.48 | O7: 0.16 | P7: 0.46 | Q7: 0.16 | R7: 0.44 | S7: 0.17 | T7: 0.41 | U7: 0.19 | V7: 0.39 | W7: 0.2 | X7: 0.37 | Y7: 0.21 | Z7: 0.34 | AA7: 0.22 | AB7: 0.32 | AC7: 0.24 | AD7: 0.29 | AE7: 0.26 | AF7: 0.26 | AG7: 0.28 | AH7: 0.23 | AI7: 0.31 | AJ7: 0.2 | AK7: 0.34 | AL7: 0.18 | AM7: 0.36 | AN7: 0.16 | AO7: 0.38 | AP7: 0.15 | AQ7: 0.4 | AR7: 0.14 | AS7: 0.41 | AT7: 0.13 | AU7: 0.43 | AV7: 0.12 | AW7: 0.44 | AX7: 0.12 | AY7: 0.45 | AZ7: 0.11 | BA7: 0.46 | BB7: 0.11 | BC7: 0.47 | BD7: 0.1 | BE7: 0.48 | BF7: 0.1 | BG7: 0.48 | BH7: 0.1 | BI7: 0.49 | BJ7: 0.09 | BK7: 0.5 | BL7: 0.09 | BM7: 0.5 | BN7: 0.09 | BO7: 0.51
A8: Deliberate Defense vs Deliberate Attack | B8: 0.41 | C8: 0.14 | D8: 0.4 | E8: 0.15 | F8: 0.4 | G8: 0.15 | H8: 0.39 | I8: 0.16 | J8: 0.38 | K8: 0.16 | L8: 0.38 | M8: 0.17 | N8: 0.37 | O8: 0.18 | P8: 0.36 | Q8: 0.19 | R8: 0.35 | S8: 0.2 | T8: 0.34 | U8: 0.21 | V8: 0.33 | W8: 0.22 | X8: 0.31 | Y8: 0.23 | Z8: 0.3 | AA8: 0.25 | AB8: 0.28 | AC8: 0.27 | AD8: 0.26 | AE8: 0.3 | AF8: 0.24 | AG8: 0.33 | AH8: 0.21 | AI8: 0.38 | AJ8: 0.18 | AK8: 0.43 | AL8: 0.16 | AM8: 0.48 | AN8: 0.14 | AO8: 0.53 | AP8: 0.12 | AQ8: 0.57 | AR8: 0.11 | AS8: 0.61 | AT8: 0.1 | AU8: 0.65 | AV8: 0.09 | AW8: 0.69 | AX8: 0.07 | AY8: 0.73 | AZ8: 0.06 | BA8: 0.76 | BB8: 0.06 | BC8: 0.8 | BD8: 0.05 | BE8: 0.83 | BF8: 0.04 | BG8: 0.86 | BH8: 0.03 | BI8: 0.89 | BJ8: 0.02 | BK8: 0.93 | BL8: 0.02 | BM8: 0.93 | BN8: 0.01 | BO8: 0.99
A9: Deliberate Defense vs Deliberate Defense | B9: N/A | C9: N/A | D9: N/A | E9: N/A | F9: N/A | G9: N/A | H9: N/A | I9: N/A | J9: N/A | K9: N/A | L9: N/A | M9: N/A | N9: N/A | O9: N/A | P9: N/A | Q9: N/A | R9: N/A | S9: N/A | T9: N/A | U9: N/A | V9: N/A | W9: N/A | X9: N/A | Y9: N/A | Z9: N/A | AA9: N/A | AB9: N/A | AC9: N/A | AD9: N/A | AE9: N/A | AF9: N/A | AG9: N/A | AH9: N/A | AI9: N/A | AJ9: N/A | AK9: N/A | AL9: N/A | AM9: N/A | AN9: N/A | AO9: N/A | AP9: N/A | AQ9: N/A | AR9: N/A | AS9: N/A | AT9: N/A | AU9: N/A | AV9: N/A | AW9: N/A | AX9: N/A | AY9: N/A | AZ9: N/A | BA9: N/A | BB9: N/A | BC9: N/A | BD9: N/A | BE9: N/A | BF9: N/A | BG9: N/A | BH9: N/A | BI9: N/A | BJ9: N/A | BK9: N/A | BL9: N/A | BM9: N/A | BN9: N/A | BO9: N/A
A10: Deliberate Defense vs Hasty Attack | B10: 0.3 | C10: 0.21 | D10: 0.29 | E10: 0.22 | F10: 0.28 | G10: 0.23 | H10: 0.28 | I10: 0.24 | J10: 0.27 | K10: 0.25 | L10: 0.27 | M10: 0.26 | N10: 0.26 | O10: 0.28 | P10: 0.25 | Q10: 0.29 | R10: 0.24 | S10: 0.3 | T10: 0.24 | U10: 0.32 | V10: 0.23 | W10: 0.34 | X10: 0.21 | Y10: 0.36 | Z10: 0.2 | AA10: 0.38 | AB10: 0.19 | AC10: 0.4 | AD10: 0.17 | AE10: 0.43 | AF10: 0.16 | AG10: 0.46 | AH10: 0.13 | AI10: 0.51 | AJ10: 0.11 | AK10: 0.55 | AL10: 0.09 | AM10: 0.58 | AN10: 0.08 | AO10: 0.61 | AP10: 0.08 | AQ10: 0.63 | AR10: 0.05 | AS10: 0.65 | AT10: 0.04 | AU10: 0.67 | AV10: 0.03 | AW10: 0.69 | AX10: 0.02 | AY10: 0.71 | AZ10: 0.01 | BA10: 0.72 | BB10: 0.01 | BC10: 0.73 | BD10: 0 | BE10: 0.75 | BF10: 0 | BG10: 0.76 | BH10: 0 | BI10: 0.77 | BJ10: 0 | BK10: 0.78 | BL10: 0 | BM10: 0.78 | BN10: 0 | BO10: 0.8
A11: Deliberate Defense vs Hasty Defense | B11: N/A | C11: N/A | D11: N/A | E11: N/A | F11: N/A | G11: N/A | H11: N/A | I11: N/A | J11: N/A | K11: N/A | L11: N/A | M11: N/A | N11: N/A | O11: N/A | P11: N/A | Q11: N/A | R11: N/A | S11: N/A | T11: N/A | U11: N/A | V11: N/A | W11: N/A | X11: N/A | Y11: N/A | Z11: N/A | AA11: N/A | AB11: N/A | AC11: N/A | AD11: N/A | AE11: N/A | AF11: N/A | AG11: N/A | AH11: N/A | AI11: N/A | AJ11: N/A | AK11: N/A | AL11: N/A | AM11: N/A | AN11: N/A | AO11: N/A | AP11: N/A | AQ11: N/A | AR11: N/A | AS11: N/A | AT11: N/A | AU11: N/A | AV11: N/A | AW11: N/A | AX11: N/A | AY11: N/A | AZ11: N/A | BA11: N/A | BB11: N/A | BC11: N/A | BD11: N/A | BE11: N/A | BF11: N/A | BG11: N/A | BH11: N/A | BI11: N/A | BJ11: N/A | BK11: N/A | BL11: N/A | BM11: N/A | BN11: N/A | BO11: N/A
A12: Hasty Attack vs Deliberate Attack | B12: N/A | C12: N/A | D12: N/A | E12: N/A | F12: N/A | G12: N/A | H12: N/A | I12: N/A | J12: N/A | K12: N/A | L12: N/A | M12: N/A | N12: N/A | O12: N/A | P12: N/A | Q12: N/A | R12: N/A | S12: N/A | T12: N/A | U12: N/A | V12: N/A | W12: N/A | X12: N/A | Y12: N/A | Z12: N/A | AA12: N/A | AB12: N/A | AC12: N/A | AD12: N/A | AE12: N/A | AF12: N/A | AG12: N/A | AH12: N/A | AI12: N/A | AJ12: N/A | AK12: N/A | AL12: N/A | AM12: N/A | AN12: N/A | AO12: N/A | AP12: N/A | AQ12: N/A | AR12: N/A | AS12: N/A | AT12: N/A | AU12: N/A | AV12: N/A | AW12: N/A | AX12: N/A | AY12: N/A | AZ12: N/A | BA12: N/A | BB12: N/A | BC12: N/A | BD12: N/A | BE12: N/A | BF12: N/A | BG12: N/A | BH12: N/A | BI12: N/A | BJ12: N/A | BK12: N/A | BL12: N/A | BM12: N/A | BN12: N/A | BO12: N/A
A13: Hasty Attack vs Deliberate Defense | B13: 0.8 | C13: 0 | D13: 0.78 | E13: 0 | F13: 0.78 | G13: 0 | H13: 0.77 | I13: 0 | J13: 0.76 | K13: 0 | L13: 0.75 | M13: 0 | N13: 0.73 | O13: 0.01 | P13: 0.72 | Q13: 0.01 | R13: 0.71 | S13: 0.02 | T13: 0.69 | U13: 0.03 | V13: 0.67 | W13: 0.04 | X13: 0.65 | Y13: 0.05 | Z13: 0.63 | AA13: 0.06 | AB13: 0.61 | AC13: 0.08 | AD13: 0.58 | AE13: 0.09 | AF13: 0.55 | AG13: 0.11 | AH13: 0.51 | AI13: 0.13 | AJ13: 0.46 | AK13: 0.16 | AL13: 0.43 | AM13: 0.17 | AN13: 0.4 | AO13: 0.19 | AP13: 0.38 | AQ13: 0.2 | AR13: 0.36 | AS13: 0.21 | AT13: 0.34 | AU13: 0.23 | AV13: 0.32 | AW13: 0.24 | AX13: 0.3 | AY13: 0.24 | AZ13: 0.29 | BA13: 0.25 | BB13: 0.28 | BC13: 0.26 | BD13: 0.26 | BE13: 0.27 | BF13: 0.25 | BG13: 0.27 | BH13: 0.24 | BI13: 0.28 | BJ13: 0.23 | BK13: 0.28 | BL13: 0.22 | BM13: 0.29 | BN13: 0.21 | BO13: 0.3
A14: Hasty Attack vs Hasty Attack | B14: N/A | C14: N/A | D14: N/A | E14: N/A | F14: N/A | G14: N/A | H14: N/A | I14: N/A | J14: N/A | K14: N/A | L14: N/A | M14: N/A | N14: N/A | O14: N/A | P14: N/A | Q14: N/A | R14: N/A | S14: N/A | T14: N/A | U14: N/A | V14: N/A | W14: N/A | X14: N/A | Y14: N/A | Z14: N/A | AA14: N/A | AB14: N/A | AC14: N/A | AD14: N/A | AE14: N/A | AF14: N/A | AG14: N/A | AH14: N/A | AI14: N/A | AJ14: N/A | AK14: N/A | AL14: N/A | AM14: N/A | AN14: N/A | AO14: N/A | AP14: N/A | AQ14: N/A | AR14: N/A | AS14: N/A | AT14: N/A | AU14: N/A | AV14: N/A | AW14: N/A | AX14: N/A | AY14: N/A | AZ14: N/A | BA14: N/A | BB14: N/A | BC14: N/A | BD14: N/A | BE14: N/A | BF14: N/A | BG14: N/A | BH14: N/A | BI14: N/A | BJ14: N/A | BK14: N/A | BL14: N/A | BM14: N/A | BN14: N/A | BO14: N/A
A15: Hasty Attack vs Hasty Defense | B15: 0.7 | C15: 0.12 | D15: 0.68 | E15: 0.13 | F15: 0.68 | G15: 0.13 | H15: 0.67 | I15: 0.14 | J15: 0.66 | K15: 0.14 | L15: 0.65 | M15: 0.15 | N15: 0.63 | O15: 0.16 | P15: 0.62 | Q15: 0.16 | R15: 0.61 | S15: 0.17 | T15: 0.59 | U15: 0.18 | V15: 0.57 | W15: 0.19 | X15: 0.55 | Y15: 0.2 | Z15: 0.53 | AA15: 0.21 | AB15: 0.51 | AC15: 0.23 | AD15: 0.48 | AE15: 0.24 | AF15: 0.45 | AG15: 0.26 | AH15: 0.41 | AI15: 0.28 | AJ15: 0.36 | AK15: 0.31 | AL15: 0.33 | AM15: 0.32 | AN15: 0.3 | AO15: 0.34 | AP15: 0.28 | AQ15: 0.35 | AR15: 0.26 | AS15: 0.36 | AT15: 0.24 | AU15: 0.38 | AV15: 0.22 | AW15: 0.39 | AX15: 0.2 | AY15: 0.39 | AZ15: 0.19 | BA15: 0.4 | BB15: 0.18 | BC15: 0.41 | BD15: 0.16 | BE15: 0.42 | BF15: 0.15 | BG15: 0.42 | BH15: 0.14 | BI15: 0.43 | BJ15: 0.13 | BK15: 0.43 | BL15: 0.12 | BM15: 0.44 | BN15: 0.11 | BO15: 0.45
A16: Hasty Defense vs Deliberate Attack | B16: 0.51 | C16: 0.09 | D16: 0.5 | E16: 0.09 | F16: 0.5 | G16: 0.09 | H16: 0.49 | I16: 0.1 | J16: 0.48 | K16: 0.1 | L16: 0.48 | M16: 0.1 | N16: 0.47 | O16: 0.11 | P16: 0.46 | Q16: 0.11 | R16: 0.45 | S16: 0.12 | T16: 0.44 | U16: 0.12 | V16: 0.43 | W16: 0.13 | X16: 0.41 | Y16: 0.14 | Z16: 0.4 | AA16: 0.15 | AB16: 0.38 | AC16: 0.16 | AD16: 0.36 | AE16: 0.18 | AF16: 0.34 | AG16: 0.2 | AH16: 0.31 | AI16: 0.23 | AJ16: 0.28 | AK16: 0.26 | AL16: 0.26 | AM16: 0.29 | AN16: 0.24 | AO16: 0.32 | AP16: 0.22 | AQ16: 0.34 | AR16: 0.21 | AS16: 0.37 | AT16: 0.2 | AU16: 0.39 | AV16: 0.19 | AW16: 0.41 | AX16: 0.17 | AY16: 0.44 | AZ16: 0.16 | BA16: 0.46 | BB16: 0.16 | BC16: 0.48 | BD16: 0.15 | BE16: 0.5 | BF16: 0.14 | BG16: 0.52 | BH16: 0.13 | BI16: 0.54 | BJ16: 0.12 | BK16: 0.56 | BL16: 0.12 | BM16: 0.56 | BN16: 0.11 | BO16: 0.59
A17: Hasty Defense vs Deliberate Defense | B17: N/A | C17: N/A | D17: N/A | E17: N/A | F17: N/A | G17: N/A | H17: N/A | I17: N/A | J17: N/A | K17: N/A | L17: N/A | M17: N/A | N17: N/A | O17: N/A | P17: N/A | Q17: N/A | R17: N/A | S17: N/A | T17: N/A | U17: N/A | V17: N/A | W17: N/A | X17: N/A | Y17: N/A | Z17: N/A | AA17: N/A | AB17: N/A | AC17: N/A | AD17: N/A | AE17: N/A | AF17: N/A | AG17: N/A | AH17: N/A | AI17: N/A | AJ17: N/A | AK17: N/A | AL17: N/A | AM17: N/A | AN17: N/A | AO17: N/A | AP17: N/A | AQ17: N/A | AR17: N/A | AS17: N/A | AT17: N/A | AU17: N/A | AV17: N/A | AW17: N/A | AX17: N/A | AY17: N/A | AZ17: N/A | BA17: N/A | BB17: N/A | BC17: N/A | BD17: N/A | BE17: N/A | BF17: N/A | BG17: N/A | BH17: N/A | BI17: N/A | BJ17: N/A | BK17: N/A | BL17: N/A | BM17: N/A | BN17: N/A | BO17: N/A
A18: Hasty Defense vs Hasty Attack | B18: 0.45 | C18: 0.11 | D18: 0.44 | E18: 0.12 | F18: 0.43 | G18: 0.13 | H18: 0.43 | I18: 0.14 | J18: 0.42 | K18: 0.15 | L18: 0.42 | M18: 0.16 | N18: 0.41 | O18: 0.18 | P18: 0.4 | Q18: 0.19 | R18: 0.39 | S18: 0.2 | T18: 0.39 | U18: 0.22 | V18: 0.38 | W18: 0.24 | X18: 0.36 | Y18: 0.26 | Z18: 0.35 | AA18: 0.28 | AB18: 0.34 | AC18: 0.3 | AD18: 0.32 | AE18: 0.33 | AF18: 0.31 | AG18: 0.36 | AH18: 0.28 | AI18: 0.41 | AJ18: 0.26 | AK18: 0.45 | AL18: 0.24 | AM18: 0.48 | AN18: 0.23 | AO18: 0.51 | AP18: 0.21 | AQ18: 0.53 | AR18: 0.2 | AS18: 0.55 | AT18: 0.19 | AU18: 0.57 | AV18: 0.18 | AW18: 0.59 | AX18: 0.17 | AY18: 0.61 | AZ18: 0.16 | BA18: 0.62 | BB18: 0.16 | BC18: 0.63 | BD18: 0.15 | BE18: 0.65 | BF18: 0.14 | BG18: 0.66 | BH18: 0.14 | BI18: 0.67 | BJ18: 0.13 | BK18: 0.68 | BL18: 0.13 | BM18: 0.68 | BN18: 0.12 | BO18: 0.7
A19: Hasty Defense vs Hasty Defense | B19: N/A | C19: N/A | D19: N/A | E19: N/A | F19: N/A | G19: N/A | H19: N/A | I19: N/A | J19: N/A | K19: N/A | L19: N/A | M19: N/A | N19: N/A | O19: N/A | P19: N/A | Q19: N/A | R19: N/A | S19: N/A | T19: N/A | U19: N/A | V19: N/A | W19: N/A | X19: N/A | Y19: N/A | Z19: N/A | AA19: N/A | AB19: N/A | AC19: N/A | AD19: N/A | AE19: N/A | AF19: N/A | AG19: N/A | AH19: N/A | AI19: N/A | AJ19: N/A | AK19: N/A | AL19: N/A | AM19: N/A | AN19: N/A | AO19: N/A | AP19: N/A | AQ19: N/A | AR19: N/A | AS19: N/A | AT19: N/A | AU19: N/A | AV19: N/A | AW19: N/A | AX19: N/A | AY19: N/A | AZ19: N/A | BA19: N/A | BB19: N/A | BC19: N/A | BD19: N/A | BE19: N/A | BF19: N/A | BG19: N/A | BH19: N/A | BI19: N/A | BJ19: N/A | BK19: N/A | BL19: N/A | BM19: N/A | BN19: N/A | BO19: N/A
A20: Meeting Engagement vs Meeting Engagement | B20: 0.71 | C20: 0.05 | D20: 0.66 | E20: 0.05 | F20: 0.65 | G20: 0.05 | H20: 0.62 | I20: 0.06 | J20: 0.59 | K20: 0.06 | L20: 0.56 | M20: 0.06 | N20: 0.53 | O20: 0.06 | P20: 0.5 | Q20: 0.07 | R20: 0.46 | S20: 0.07 | T20: 0.43 | U20: 0.08 | V20: 0.4 | W20: 0.06 | X20: 0.37 | Y20: 0.09 | Z20: 0.33 | AA20: 0.1 | AB20: 0.3 | AC20: 0.11 | AD20: 0.26 | AE20: 0.12 | AF20: 0.22 | AG20: 0.14 | AH20: 0.19 | AI20: 0.19 | AJ20: 0.15 | AK20: 0.22 | AL20: 0.13 | AM20: 0.25 | AN20: 0.12 | AO20: 0.29 | AP20: 0.1 | AQ20: 0.33 | AR20: 0.09 | AS20: 0.37 | AT20: 0.09 | AU20: 0.41 | AV20: 0.08 | AW20: 0.45 | AX20: 0.07 | AY20: 0.49 | AZ20: 0.07 | BA20: 0.53 | BB20: 0.06 | BC20: 0.57 | BD20: 0.06 | BE20: 0.61 | BF20: 0.06 | BG20: 0.65 | BH20: 0.06 | BI20: 0.69 | BJ20: 0.05 | BK20: 0.72 | BL20: 0.05 | BM20: 0.76 | BN20: 0.05 | BO20: 0.8
A21: CGSOC interpretation of doctrinal minimums and historical models. | B21: Friendly | C21: Enemy | D21: Friendly | E21: Enemy | F21: Friendly | G21: Enemy | H21: Friendly | I21: Enemy | J21: Friendly | K21: Enemy | L21: Friendly | M21: Enemy | N21: Friendly | O21: Enemy | P21: Friendly | Q21: Enemy | R21: Friendly | S21: Enemy | T21: Friendly | U21: Enemy | V21: Friendly | W21: Enemy | X21: Friendly | Y21: Enemy | Z21: Friendly | AA21: Enemy | AB21: Friendly | AC21: Enemy | AD21: Friendly | AE21: Enemy | AF21: Friendly | AG21: Enemy | AH21: Friendly | AI21: Enemy | AJ21: Friendly | AK21: Enemy | AL21: Friendly | AM21: Enemy | AN21: Friendly | AO21: Enemy | AP21: Friendly | AQ21: Enemy | AR21: Friendly | AS21: Enemy | AT21: Friendly | AU21: Enemy | AV21: Friendly | AW21: Enemy | AX21: Friendly | AY21: Enemy | AZ21: Friendly | BA21: Enemy | BB21: Friendly | BC21: Enemy | BD21: Friendly | BE21: Enemy | BF21: Friendly | BG21: Enemy | BH21: Friendly | BI21: Enemy | BJ21: Friendly | BK21: Enemy | BL21: Friendly | BM21: Enemy | BN21: Friendly | BO21: Enemy
A24: Missions: (choices)
A25: Hasty Attack
A26: Deliberate Attack
A27: Hasty Defense
A28: Deliberate Defense
A29: Meeting Engagement

Sheet Data (hidden)
A1: Friendly | D1: Enemy
A2: Type | B2: Force Equivalent | C2: Branch | D2: Type | E2: Force Equivalent | F2: Branch | H2: Source: TRADOC Analysis Center
A3: Infantry Bde (SBCT) | B3: 208.61 | D3: Infantry Bde (BTR-80/T-72A) | E3: 274.8 | H3: OPFOR values based on DATE TO&Es from ATN
A4: Infantry Bn (SBCT) | B4: 33.45 | D4: Infantry Bn (BTR-80) | E4: 42.9 | H4: BLUFOR values based on FMSWeb MTO&Es for FY17
A5: Infantry Co (SBCT) | B5: 8.57 | D5: Infantry Co (BTR-80) | E5: 8.67
A6: Cav Sqdn (SBCT) | B6: 32.71 | D6: Tank Bn (T-72A) | E6: 25.47
A7: Cav Trp (SBCT) | B7: 7 | D7: Tank Co (T-72A) | E7: 5.22
A8: Weapons Trp (SBCT) | B8: 9.29 | D8: FA Bn (G5) | E8: 21.42
A9: FA Bn (M777) | B9: 20.51 | D9: FA Btry (G5) | E9: 4.26
A10: FA Btry (SBCT) (M777) | B10: 3.45 | D10: SP Combo Gun Btry | E10: 3.24
A11: EN Bn (SBCT) | B11: 18.79 | D11: Recon Co (BTR-80) | E11: 8.87
A12: EN A Co (SBCT) | B12: 6.45 | D12: Infantry Bde (BMP-2/T-80U) | E12: 251.05
A13: Armored Bde (ABCT) (M1A2) | B13: 248.99 | D13: Infantry Bn (BMP-2) | E13: 36.3
A14: Combined Arms Bn (M1A2) | B14: 37.24 | D14: Infantry Co (BMP-2) | E14: 7.1
A15: Infantry Co (M2A2) | B15: 8.95 | D15: Infantry Bde (BMP-3/T-80U) | E15: 269.35
A16: Tank Co (M1A2) | B16: 7.8 | D16: Infantry Bn (BMP-3) | E16: 41.12
A17: Cav Sqdn (M1A2) | B17: 39.88 | D17: Infantry Co (BMP-3) | E17: 8.3
A18: Cav Trp (ABCT) | B18: 8.55 | D18: Tank Bn (T-80U) | E18: 28.96
A19: FA Bn (M109A6) | B19: 28.13 | D19: Tank Co (T-80U) | E19: 6.34
A20: FA Btry (M109A6) | B20: 5.87 | D20: FA Bn (2S19) | E20: 21.42
A21: EN Bn (ABCT) | B21: 21.31 | D21: FA Btry (2S19) | E21: 4.26
A22: EN A Co (ABCT) | B22: 7.95 | D22: Recon Co (BMP) | E22: 8.87
A23: Infantry Bde (IBCT) | B23: 131.3 | D23: EN Co (BMP) | E23: 15.31
A24: Infantry Bn (IBCT) | B24: 19.09 | D24: Tank Bde (T72A/BMP-2) | E24: 211.95
A25: Infantry Co (IBCT) | B25: 2.7 | D25: Tank Bde (T-80U/BMP-2) | E25: 222.64
A26: Weapons Co (IBCT) | B26: 4.38 | D26: Tank Bde (T-90/BMP-3) | E26: 230.49
A27: Cav Sqdn (IBCT) | B27: 14.16 | D27: Tank Bn (T-90) | E27: 28.01
A28: Cav Trp (IBCT) | B28: 5.01 | D28: Tank Co (T-90) | E28: 6.04
A29: FA Bn (Comp) | B29: 17.6 | D29: Recon Co (Tank) | E29: 7.24
A30: FA Btry (M119) | B30: 3.31 | D30: Engineer Co (Tank) | E30: 16.13
A31: FA Btry (M777) | B31: 4.1 | D31: Inf Bde (Mtr) | E31: 240.18
A32: EN Bn (IBCT) | B32: 13.17 | D32: Inf Bn (Mtr) | E32: 31.55
A33: EN A Co (IBCT) | B33: 3.75 | D33: Inf Co (Mtr) | E33: 5.57
A34: Armored Bde (GB) | B34: 313.6 | D34: Tank Bn (T-72B) | E34: 28.79
A35: Recon Squadron (GB) | B35: 19.1 | D35: Tank Co (T-72B) | E35: 6.29
A36: Mech Inf Bn (GB) | B36: 45.97 | D36: FA Bn (G6 Rhino) | E36: 16.85
A37: Armored Inf Bn (GB) | B37: 41.25 | D37: FA Btry (G6 Rhino) | E37: 2.73
A38: Light Inf Bn (GB) | B38: 19.09 | D38: Recon Co (Mtr) | E38: 9.83
A39: Tank Regt (GB) | B39: 41.91 | D39: En Co (Mtr) | E39: 16.03
A40: FA Regt (GB) | B40: 33.42 | D40: Inf Bde (Light) | E40: 192.89
A41: EN Regt (GB) | B41: 26.54 | D41: Inf Bn (Light) | E41: 30.3
A42: ADA Btry (GB) | B42: 5.23 | D42: Inf Co (Light) | E42: 4.47
A43: Mechanized Bde (TR) | B43: 184.34 | D43: Guerilla Bde | E43: 75.13
A44: Mech Inf Bn (TR) (AIFV) | B44: 38.81 | D44: Guerilla Bn | E44: 15.98
A45: Tank Bn (TR) (Leo 2A4) | B45: 37.95 | D45: Guerilla Wpns Bn | E45: 8.35
A46: FA Bn (TR) (155SP) | B46: 28.13 | D46: Recon Co | E46: 3.94
A47: Inf Bde (AZ) | B47: 100.3477 | D47: Sapper Co | E47: 2.81
A48: Inf Bn (AZ) | B48: 55.3968 | D48: Guerilla Co | E48: 2.77
A49: Inf Co (AZ) | B49: 9.4272 | D49: Weapons Co | E49: 4.19
A50: Tank Bn (AZ) (T72) | B50: 25.47 | D50: Guerilla Mortar Btry | E50: 1.33
A51: Tank Co (AZ) (T72) | B51: 5.22 | D51: Guerilla RL Btry | E51: 2.22
A52: FA Btry (D-30) | B52: 2.032 | D52: Guerilla AT Btry | E52: 3.49
A53: Mech Inf Bde (AZ) | B53: 64.8499 | D53: AT Bn (Mech) | E53: 29.71
A54: Mech Inf Bde (AZ) (BMP-2/Leo I) | B54: 124.8861 | D54: AT Btry MT-12R | E54: 6.6
A55: Mech Inf Bn (AZ) BMP-2) | B55: 36.3 | D55: AT Btry (AMX-10 HOT 3) | E55: 4.29
A56: Mech Inf Co (AZ) (BMP-2) | B56: 7.1 | D56: AT Bn (Mtr) | E56: 15.49
A57: Tank Bde (AZ) (Leo I) | B57: 74.2049 | D57: ADA Bn (Mech) | E57: 18.04
A58: Tank Bn (AZ) (Leo I) | B58: 34.78 | D58: ADA Btry (SP AA Gun) | E58: 1.88
A59: Tank Co (AZ) (Leo I) | B59: 6.7 | D59: ADA Btry (SA-15) | E59: 3.43
A60: FA SP Bde (AZ) | B60: 129.5406 | D60: ADA Btry (SA-18) | E60: 6.14
A61: FA SP Bn (AZ) | B61: 20.7795 | D61: ADA Bn (Mtr) | E61: 21.28
A62: FA SP Btry (AZ) | B62: 4.0992 | D62: ADA Btry (Skyguard) | E62: 2.2
A63: ADA Bn (AZ) | B63: 14.58 | D63: FA Bde (Mech Division) | E63: 131.55
A64: ADA Btry (AZ) | B64: 6.363 | D64: FA Bn (2S1) | E64: 21.88
A65: EN Co (Sapper) | B65: 6.7 | D65: FA Btry (2S1) | E65: 4.41
A66: MP Co | B66: 12.3 | D66: FA Bn (2S3) | E66: 20.25
A67: FA Bn (MLRS) | B67: 13.08 | D67: FA Btry (2S3) | E67: 3.83
A68: FA Btry (MLRS) | B68: 5.25 | D68: FA Bn (2S5) | E68: 21.34
A69: FA Bn (HIMARS) | B69: 10.48 | D69: FA Btry (2S5) | E69: 4.23
A70: FA Btry (HIMARS) | B70: 4.2 | D70: FA Bde (MRL) | E70: 104.15
A71: Avenger Bn | B71: 9.5 | D71: FA Bn (9P140/URAGAN/BM-27) | E71: 16.92
A72: Avenger Btry | B72: 1.5 | D72: FA Btry (9P140/URAGAN/BM-27) | E72: 2.7
A73: AVN Bn (AH-64) | B73: 15.72 | D73: FA Bn (9A52-2/SMERCH-M/BM-30) | E73: 18.29
A74: AVN Co (AH-64) | B74: 5.24 | D74: FA Btry (9A52-2/SMERCH-M/BM-30) | E74: 3.15
A75: CAS Sortie Equivalent | B75: 8 | D75: FA Bn (WM-80) | E75: 17.95
A76: CAS Sortie x2 | B76: 16 | D76: FA Btry (WM-80) | E76: 3
A77: CAS Sortie x5 | B77: 40 | D77: FA Bn (Fajr-3) | E77: 18.03
A78: CAS Sortie x10 | B78: 80 | D78: FA Btry (Fajr-3) | E78: 2.82
D79: FA Bde (Mtr Division) | E79: 122.8
D80: ADA Bde (Mech Division) | E80: 25.91
D81: Recon Bn (Mech Division) | E81: 30.52
D82: EN Bn (Mech Division) | E82: 34.38
D83: AVN Bn (Mi-24D/E) | E83: 9.98
D84: AVN Co (Mi-24D/E) | E84: 3.32
D85: AVN Bn (Mi-28) | E85: 15.42
D86: AVN Co (Mi-28) | E86: 5.14
D87: AVN Bn (Ka-50) | E87: 10.08
D88: AVN Co (Ka-50) | E88: 3.36
D89: CAS Sortie Equivalent | E89: 7
D90: CAS Sortie x2 | E90: 14
D91: CAS Sortie x5 | E91: 35
D92: CAS Sortie x10 | E92: 70
